[Event "Haarlemse Meesters-IM 2018"]
[Site "Haarlem"]
[Date "2018.10.20"]
[Round "1"]
[White "Bosboom, Manuel"]
[Black "Vedder, Richard"]
[Result "1/2-1/2"]
[ECO "A38"]
[WhiteElo "2404"]
[BlackElo "2288"]
[Annotator "NA"]
[PlyCount "119"]
[EventDate "2018.10.17"]
[EventType "tourn"]
[EventCountry "NED"]
[SourceTitle "playchess.com"]
[Source "ChessBase"]
[SourceQuality "1"]
[TimeControl "40/5400+30:1800+30"]

{[%evp 8,98,-8,-23,-13,-23,-19,-18,29,29,25,32767,23,20,32767,29,20,28,46,50,56,81,78,66,80,72,112,32767,32767,32767,32767,32767,32767,32767,127,37,49,50,29,32767,32767,10,20,32767,32767,32767,32767,11,32767,32767,32767,32767,32767,32767,128,32767,164,32767,32767,32767,32767,32767,169,112,32767,114,151,143,32767,157,554,580,32767,159,193,32767,158,118,203,32767,32767,32767,32767,32767,32767,128,114,123,32767,119,132,54,117]} 1. Nf3 {[%emt 0:00:00]} g6 {[%emt 0:00:00]} 2. c4 {[%emt 0:01:22]} c5 {[%emt 0:00:00]} 3. Nc3 {[%emt 0:03:53]} Nc6 {[%emt 0:00:18]} 4. Rb1 {[%emt 0:01:39]} Nf6 {[%emt 0:02:17]} 5. g3 {[%emt 0:04:09]} Bg7 {[%emt 0:00:07]} 6. Bg2 {[%emt 0:00:06]} O-O {[%emt 0:02:11]} 7. O-O {[%emt 0:02:07]} e5 {[%emt 0:06:10]} (7... d5 $15) 8. d3 {[%emt 0:05:14]} d6 {[%emt 0:05:09]} 9. Bg5 {[%emt 0:03:59]} h6 {[%emt 0:00:26]} 10. Bxf6 {[%emt 0:00:35]} Bxf6 {[%emt 0:00:21]} 11. a3 {[%emt 0:00:17]} a5 {[%emt 0:04:07]} 12. Ne1 {[%emt 0:07:18]} Bg7 {[%emt 0:01:36]} 13. Nc2 {[%emt 0:00:58] A38: Symmetrical English vs ...g6: 4 Bg2 Bg7 5 Nf3 Nf6} a4 {[%emt 0:12:21]} 14. Ne3 {[%emt 0:04:40] LiveBook: 5 Games} Qa5 {[%emt 0:02:40]} 15. Ned5 {[%emt 0:03:31]} Kh7 $146 {[%emt 0:01:13]} ({Predecessor:} 15... Be6 16. Nb5 Bxd5 17. Bxd5 Qd8 18. Nc3 Qa5 19. h4 Kh8 20. e3 f5 {1-0 (76) Spraggett,K (2601)-Ramesh,R (2478) Benasque 2008}) 16. e3 {[%emt 0:02:12]} Ra6 {[%emt 0:04:55]} 17. Qc2 {[%emt 0:08:55]} Na7 {[%emt 0:02:56]} 18. Ne7 {[%emt 0:02:44]} Nc6 {[%emt 0:01:33]} 19. Nxc8 {[%emt 0:02:20]} Rxc8 {[%emt 0:00:02]} 20. Nd5 {[%emt 0:05:45]} b5 {[%emt 0:07:36]} 21. f4 {[%emt 0:07:43]} (21. cxb5 $16 Qxb5 22. b4 axb3 23. Rxb3) 21... exf4 {[%emt 0:08:34]} 22. Rxf4 {[%emt 0:04:35]} bxc4 {[%emt 0:02:48]} 23. Rxf7 {[%emt 0:08:47]} Ne5 {[%emt 0:02:30]} 24. Be4 {[%emt 0:03:52]} Nxf7 {[%emt 0:05:03]} 25. Bxg6+ {[%emt 0:00:37]} Kh8 {[%emt 0:00:53]} 26. Bxf7 {[%emt 0:00:16]} Ra7 {[%emt 0:07:24]} 27. Be6 {[%emt 0:01:57]} Re8 {[%emt 0:01:28]} 28. Bg4 {[%emt 0:01:08]} cxd3 {[%emt 0:05:54]} 29. Qxd3 {[%emt 0:00:05]} Re5 {[%emt 0:00:06]} 30. Nf4 {[%emt 0:03:16]} c4 {[%emt 0:05:07]} (30... Rxe3 $1 $11 31. Ng6+ (31. Qxe3 $2 {loses.} Bd4 $19) 31... Kh7 32. Nf8+ (32. Qxe3 $2 Bd4 $19) 32... Kg8 33. Qd5+ Kh8 34. Ng6+ Kh7) 31. Qxc4 {[%emt 0:01:57]} Qc5 {[%emt 0:03:54]} (31... Re8 $16) 32. Ng6+ {[%emt 0:01:34]} Kh7 {[%emt 0:00:01]} 33. Nxe5 {[%emt 0:00:06]} Qxe3+ {[%emt 0:00:04]} 34. Kg2 {[%emt 0:02:30]} Bxe5 {[%emt 0:00:16]} 35. Qe6 {[%emt 0:01:18]} ({White should try} 35. b3 $18) 35... Kg7 {[%emt 0:01:42]} 36. Rf1 {[%emt 0:03:33]} Qe4+ {[%emt 0:00:17]} 37. Bf3 {[%emt 0:01:09]} Qg6 {[%emt 0:00:37]} 38. Qc4 {[%emt 0:00:18]} Qf7 $2 {[%emt 0:04:30]} (38... Rf7 $16 {is more resistant.} 39. Be4 (39. Qxa4 Bxb2 40. Be4 Qe6 $18) 39... Qh5) 39. Bd5 {[%emt 0:00:28]} Qg6 {[%emt 0:00:53]} 40. Be4 $2 {[%emt 0:01:39]} (40. Qc8 $18 {[%csl Gd5][%cal Rc8g8]} h5 41. Qf8+ Kh7 42. Rf5) 40... Qe8 {[%emt 0:00:55]} 41. Rf2 {[%emt 0:04:13]} Rf7 {[%emt 0:02:12]} 42. Re2 {[%emt 0:00:34]} Ra7 {[%emt 0:01:18]} (42... Qd7 $16 43. Bd5 Rf8) 43. Bd5 {[%emt 0:00:57]} Qd7 {[%emt 0:05:12]} 44. Rf2 {[%emt 0:02:37]} Bf6 {[%emt 0:03:32]} 45. Be6 {[%emt 0:01:19]} Qb7+ {[%emt 0:00:22]} 46. Kh3 {[%emt 0:00:14]} Ra5 {[%emt 0:00:24]} 47. Bf5 {[%emt 0:01:55]} h5 {[%emt 0:02:42]} 48. Qe2 {[%emt 0:04:56]} Qf7 {[%emt 0:00:40]} 49. Qe4 {[%emt 0:05:17]} ({White should try} 49. Bc2 $16) 49... Qd5 $16 {[%emt 0:04:27]} ({Black should play} 49... Bxb2 $14 50. Qc2 (50. Rxb2 Qxf5+ 51. Qxf5 Rxf5 $14) 50... Bf6) 50. Qc2 {[%emt 0:01:33]} Qf7 {[%emt 0:02:25]} 51. Be4 {[%emt 0:02:32]} Re5 {[%emt 0:03:01]} 52. Bf3 {[%emt 0:00:31]} Qd7+ {[%emt 0:01:01]} 53. Kg2 {[%emt 0:00:03]} d5 {[%emt 0:00:12]} 54. Qd3 {[%emt 0:01:14]} d4 {[%emt 0:00:25]} 55. Qa6 {[%emt 0:01:38]} Re6 {[%emt 0:01:09]} 56. Qc4 {[%emt 0:00:32]} h4 {[%emt 0:00:47]} 57. Kf1 {[%emt 0:02:53]} Re3 {[%emt 0:01:59]} 58. gxh4 {[%emt 0:02:18]} Qh3+ {[%emt 0:00:01]} 59. Bg2 {[%emt 0:01:15]} Qe6 {[%emt 0:02:12]} 60. Qxe6 {[%emt 0:02:36]} 1/2-1/2

[Event "Haarlemse Meesters-IM 2018"]
[Site "Haarlem"]
[Date "2018.10.20"]
[Round "1"]
[White "Lenaerts, Lennert"]
[Black "Van Kerkhof, David"]
[Result "0-1"]
[ECO "A58"]
[WhiteElo "2362"]
[BlackElo "2371"]
[Annotator "NA"]
[PlyCount "106"]
[EventDate "2018.10.17"]
[EventType "tourn"]
[EventCountry "NED"]
[SourceTitle "playchess.com"]
[Source "ChessBase"]
[SourceQuality "1"]
[TimeControl "40/5400+30:1800+30"]

1. d4 {[%emt 0:00:00]} Nf6 {[%emt 0:00:00]} 2. c4 {[%emt 0:00:00]} c5 {[%emt 0:00:00]} 3. d5 {[%emt 0:00:00]} b5 {[%emt 0:00:00]} 4. cxb5 {[%emt 0:00:00]} a6 {[%emt 0:00:00]} 5. bxa6 {[%emt 0:00:06]} g6 {[%emt 0:00:00] LiveBook: 3531 Games} 6. Nc3 {[%emt 0:00:05] A58: Benko/Volga Gambit: Lines with 5 bxa6} Bg7 {[%emt 0:00:04]} 7. e4 {[%emt 0:02:00]} (7. Nf3 O-O 8. g3 d6 9. Bg2 Nxa6 10. O-O Bf5 11. Nh4 Bd7 12. b3 Qb6 13. Bd2 Rfb8 14. Re1 Nc7 15. Qc2 Ra3 16. Qc1 Qa7 17. e4 Ng4 18. h3 {0-1 (38) Li,C (2732)-Shankland,S (2671) Liaocheng 2018}) 7... O-O {[%emt 0:00:08]} 8. a7 {[%emt 0:01:33]} Rxa7 {[%emt 0:00:30]} 9. Nf3 {[%emt 0:01:44]} e6 {[%emt 0:03:59]} 10. Be2 {[%emt 0:26:25]} exd5 {[%emt 0:00:29]} 11. exd5 {[%emt 0:00:06]} d6 {[%emt 0:00:56]} 12. O-O {[%emt 0:01:02]} Na6 {[%emt 0:03:24]} 13. Bf4 {[%emt 0:07:45]} Nc7 {[%emt 0:15:26]} 14. Re1 $146 {[%emt 0:11:20]} Re8 {[%emt 0:07:05]} 15. Bc4 {[%emt 0:02:22]} Rxe1+ {[%emt 0:18:13]} 16. Qxe1 {[%emt 0:02:32]} Ba6 {[%emt 0:00:08]} 17. b3 {[%emt 0:11:40]} Nh5 {[%emt 0:12:44]} 18. Bg5 {[%emt 0:05:23]} Qa8 {[%emt 0:02:26]} 19. Rd1 {[%emt 0:01:08]} Bxc4 {[%emt 0:08:32]} 20. bxc4 {[%emt 0:00:02]} Ra3 {[%emt 0:00:10]} 21. Ne4 {[%emt 0:06:37]} Qa6 $2 {[%emt 0:02:53]} (21... Ne8 $1 $14) 22. Rb1 {[%emt 0:01:40]} h6 {[%emt 0:01:49]} 23. Rb8+ {[%emt 0:00:49]} Kh7 {[%emt 0:00:41]} 24. Bc1 {[%emt 0:00:22]} Rxf3 {[%emt 0:02:29]} 25. gxf3 {[%emt 0:00:01]} Qxc4 {[%emt 0:00:17]} 26. Nxd6 {[%emt 0:03:54]} Qxd5 {[%emt 0:02:32]} 27. Qd2 {[%emt 0:02:05]} Qxf3 {[%emt 0:01:03]} 28. Rb7 {[%emt 0:00:33]} Ne6 {[%emt 0:08:34]} 29. Rxf7 {[%emt 0:03:38]} Qg4+ {[%emt 0:00:02]} 30. Kh1 {[%emt 0:02:11]} Ng5 {[%emt 0:00:18]} 31. f3 {[%emt 0:03:20]} Qh4 {[%emt 0:02:25]} 32. Rxg7+ {[%emt 0:02:50]} Nxg7 {[%emt 0:02:22]} 33. Qe2 {[%emt 0:01:01]} Nxf3 {[%emt 0:00:30]} 34. Qxf3 {[%emt 0:01:14]} Qe1+ {[%emt 0:00:07]} 35. Kg2 {[%emt 0:00:01]} Qxc1 {[%emt 0:00:07]} 36. Qf8 {[%emt 0:00:01]} Qc2+ {[%emt 0:01:20]} 37. Kg1 {[%emt 0:00:03]} Qb1+ {[%emt 0:00:30]} ({Finger weg von} 37... Qxa2 38. Qf4 $19) (37... c4 $142 38. Ne8 Qb1+ 39. Qf1 Qxf1+ 40. Kxf1 Nxe8) 38. Kg2 {[%emt 0:00:02]} Qxa2+ {[%emt 0:00:06]} 39. Kg1 {[%emt 0:00:04]} Qa1+ {[%emt 0:01:00]} 40. Kg2 {[%emt 0:00:01]} Qa2+ {[%emt 0:00:06]} 41. Kg1 {[%emt 0:30:03]} Qb1+ {[%emt 0:09:16]} 42. Kg2 $19 {[%emt 0:00:00]} (42. Qf1 Qb4 43. Qd1) 42... Qc2+ {[%emt 0:00:03]} 43. Kg1 {[%emt 0:00:00]} Qd1+ {[%emt 0:00:03]} 44. Kg2 {[%emt 0:00:00]} Qd5+ {[%emt 0:01:10]} 45. Kg1 {[%emt 0:00:00]} Qd4+ {[%emt 0:03:53]} 46. Kg2 {[%emt 0:00:00]} c4 {[%emt 0:00:28]} 47. Nf7 {[%emt 0:00:00]} Qd5+ {[%emt 0:01:37]} 48. Kf2 {[%emt 0:00:00]} g5 {[%emt 0:00:34]} 49. Qh8+ {[%emt 0:00:00]} Kg6 {[%emt 0:00:04]} 50. Nxh6 {[%emt 0:00:00]} c3 {[%emt 0:05:32]} 51. Ng4 {[%emt 0:00:00]} Qf5+ {[%emt 0:00:57]} 52. Kg3 {[%emt 0:00:00]} Qf4+ {[%emt 0:00:05]} 53. Kh3 {[%emt 0:00:00]} Qf3# {[%emt 0:00:37]} 0-1

[Event "Haarlemse Meesters-IM 2018"]
[Site "Haarlem"]
[Date "2018.10.20"]
[Round "1"]
[White "Basman, Michael J"]
[Black "Gijswijt, Bart"]
[Result "0-1"]
[ECO "A00"]
[WhiteElo "2313"]
[BlackElo "2321"]
[Annotator "NA"]
[PlyCount "55"]
[EventDate "2018.10.17"]
[EventType "tourn"]
[EventCountry "NED"]
[SourceTitle "playchess.com"]
[Source "ChessBase"]
[SourceQuality "1"]
[TimeControl "40/5400+30:1800+30"]

1. g4 {[%emt 0:00:00]} d5 {[%emt 0:00:00]} 2. h3 {[%emt 0:00:00]} e5 {[%emt 0:00:34]} 3. Bg2 {[%emt 0:00:17]} h5 {[%emt 0:00:56]} 4. c4 {[%emt 0:04:42]} dxc4 {[%emt 0:01:36]} ({Don't play} 4... hxg4 5. cxd5 Nf6 6. Nc3 $17) 5. gxh5 {[%emt 0:04:49]} c6 {[%emt 0:06:54]} 6. Nc3 {[%emt 0:02:14]} Nf6 {[%emt 0:02:48]} 7. b3 {[%emt 0:02:22]} Nxh5 {[%emt 0:05:10]} 8. bxc4 {[%emt 0:03:11]} Nf4 {[%emt 0:01:56]} 9. Bf1 {[%emt 0:01:07]} Na6 {[%emt 0:09:51]} 10. d3 {[%emt 0:07:39]} Bf5 {[%emt 0:06:31]} 11. Rb1 {[%emt 0:09:33]} Nc5 {[%emt 0:06:29]} 12. Nf3 {[%emt 0:06:56]} Qf6 {[%emt 0:06:00]} 13. Be3 {[%emt 0:10:18]} Rd8 {[%emt 0:04:01]} 14. Na4 {[%emt 0:05:24]} (14. Nd2 {might work better.}) 14... Ncxd3+ {[%emt 0:14:44]} 15. exd3 {[%emt 0:00:11]} Nxd3+ {[%emt 0:00:11]} 16. Bxd3 {[%emt 0:00:45]} Rxd3 {[%emt 0:00:58]} 17. Nd2 {[%emt 0:02:29]} Qg6 {[%emt 0:07:18]} 18. Rb3 {[%emt 0:12:22]} Bb4 {[%emt 0:08:26]} 19. Qe2 $2 {[%emt 0:07:22]} (19. Ke2 $17 {is tougher.} Rxd2+ 20. Bxd2) 19... Rxb3 {[%emt 0:01:06]} 20. axb3 {[%emt 0:00:04]} Bd3 {[%emt 0:00:09]} 21. Qf3 {[%emt 0:08:43]} Be4 {[%emt 0:00:18]} 22. Qg3 {[%emt 0:00:05]} Qxg3 {[%emt 0:00:08]} 23. fxg3 {[%emt 0:00:00]} Bxh1 {[%emt 0:00:21]} 24. h4 {[%emt 0:00:27]} b6 {[%emt 0:01:41]} 25. Ke2 {[%emt 0:01:37]} Ke7 {[%emt 0:02:27]} 26. Nb2 {[%emt 0:00:05]} Bxd2 {[%emt 0:02:21]} 27. Bxd2 {[%emt 0:00:03]} Be4 {[%emt 0:00:25]} 28. Ke1 $19 {[%emt 0:03:20]} 0-1

[Event "Haarlemse Meesters-IM 2018"]
[Site "Haarlem"]
[Date "2018.10.21"]
[Round "2"]
[White "Van Kerkhof, David"]
[Black "Van Baar, Esper"]
[Result "1/2-1/2"]
[ECO "B90"]
[WhiteElo "2371"]
[BlackElo "2223"]
[Annotator "NA"]
[PlyCount "123"]
[EventDate "2018.10.17"]
[EventType "tourn"]
[EventCountry "NED"]
[SourceTitle "playchess.com"]
[Source "ChessBase"]
[SourceQuality "1"]
[TimeControl "40/5400+30:1800+30"]

1. e4 {[%emt 0:00:00]} c5 {[%emt 0:00:14]} 2. Nf3 {[%emt 0:00:00]} d6 {[%emt 0:00:04]} 3. d4 {[%emt 0:00:00]} cxd4 {[%emt 0:00:05]} 4. Nxd4 {[%emt 0:00:02]} Nf6 {[%emt 0:00:07]} 5. Nc3 {[%emt 0:00:03]} a6 {[%emt 0:00:05]} 6. Be3 {[%emt 0:00:23]} e5 {[%emt 0:01:29]} 7. Nf3 {[%emt 0:00:08]} Be7 {[%emt 0:00:10]} 8. Bc4 {[%emt 0:00:10]} O-O {[%emt 0:00:24]} 9. O-O {[%emt 0:00:05]} Qc7 {[%emt 0:00:10]} 10. Qe2 $146 {[%emt 0:03:32] B90: Sicilian Najdorf: Unusual White 6th moves, 6 Be3 Ng4 and 6 Be3 e5} (10. Bb3 Be6 11. Nh4 g6 12. Bh6 Re8 13. Qd2 Nbd7 14. Nf5 Bxb3 15. axb3 Nc5 16. Rae1 Ne6 17. Ne3 Rac8 18. h3 Bf8 19. Bxf8 Rxf8 {1-0 (46) Giri,A (2755)-Anand,V (2776) Moscow 2016}) 10... Be6 {[%emt 0:01:34]} 11. Bb3 {[%emt 0:00:09]} Rc8 {[%emt 0:00:14]} 12. Rfd1 {[%emt 0:01:06]} b5 {[%emt 0:03:02]} 13. Rac1 {[%emt 0:08:11]} Nbd7 {[%emt 0:04:02]} 14. Bg5 {[%emt 0:06:47] LiveBook: 12 Games} h6 {[%emt 0:07:25]} 15. Bxf6 {[%emt 0:03:12]} Nxf6 {[%emt 0:00:58]} 16. Nd5 {[%emt 0:01:57]} Nxd5 {[%emt 0:04:11]} 17. Bxd5 {[%emt 0:00:10]} Bxd5 {[%emt 0:01:40]} 18. Rxd5 {[%emt 0:00:02]} Qc4 {[%emt 0:03:54]} 19. Qxc4 {[%emt 0:04:09]} Rxc4 {[%emt 0:02:01]} 20. Nd2 {[%emt 0:01:55]} Rc6 {[%emt 0:00:48]} 21. c3 {[%emt 0:03:18]} Rb8 {[%emt 0:16:09]} 22. Rd1 {[%emt 0:10:03]} g6 {[%emt 0:04:21]} 23. Kf1 {[%emt 0:03:57]} h5 {[%emt 0:08:24]} 24. Ke2 {[%emt 0:02:17]} Kg7 {[%emt 0:01:34]} 25. g3 {[%emt 0:06:08]} h4 {[%emt 0:05:16]} 26. a3 {[%emt 0:02:13]} hxg3 {[%emt 0:03:30]} 27. hxg3 {[%emt 0:00:02]} a5 {[%emt 0:04:28]} 28. Nb3 {[%emt 0:02:50]} Ra6 {[%emt 0:00:26]} 29. Kd3 {[%emt 0:01:16]} Bd8 {[%emt 0:04:41]} 30. Kc2 {[%emt 0:03:12]} Bc7 {[%emt 0:10:56]} 31. Ra1 {[%emt 0:06:02]} Rc6 {[%emt 0:00:00]} 32. a4 {[%emt 0:09:42]} bxa4 {[%emt 0:03:04]} 33. Nd2 {[%emt 0:00:11]} Bb6 {[%emt 0:00:24]} 34. f3 {[%emt 0:00:03]} Rh8 {[%emt 0:04:07]} 35. g4 {[%emt 0:04:21]} Rh2 {[%emt 0:01:56]} 36. Rd3 {[%emt 0:02:22]} f5 {[%emt 0:01:58]} 37. gxf5 {[%emt 0:00:41]} gxf5 {[%emt 0:00:04]} 38. Rxa4 {[%emt 0:00:12]} f4 {[%emt 0:01:48]} 39. Kb1 {[%emt 0:03:36]} Rf2 {[%emt 0:01:44]} 40. Nc4 {[%emt 0:00:31]} Bc7 {[%emt 0:01:27]} 41. Nxa5 {[%emt 0:41:51]} Ra6 {[%emt 0:07:29]} 42. b4 {[%emt 0:00:00]} Bb6 {[%emt 0:13:17]} 43. Rxd6 {[%emt 0:00:00]} Rxf3 {[%emt 0:00:03]} 44. Kc2 {[%emt 0:00:00]} Rf1 {[%emt 0:03:53]} 45. c4 {[%emt 0:00:00]} f3 {[%emt 0:01:16]} 46. Ra3 $11 {[%emt 0:00:00]} ({Don't blunder} 46. c5 $2 f2 $19) 46... f2 {[%emt 0:02:30]} 47. Rg3+ {[%emt 0:00:00]} Kf7 {[%emt 0:01:37]} 48. Rf3+ {[%emt 0:00:00]} Ke7 {[%emt 0:00:06]} 49. c5 {[%emt 0:00:00]} Rxa5 {[%emt 0:03:15]} 50. bxa5 {[%emt 0:00:00]} Bxc5 {[%emt 0:00:02]} 51. Rd1 {[%emt 0:00:00]} Re1 {[%emt 0:00:27]} 52. Rd5 {[%emt 0:00:38]} Bd4 {[%emt 0:00:35]} 53. Rxd4 {[%emt 0:00:12]} exd4 {[%emt 0:00:13]} 54. Rxf2 {[%emt 0:00:01]} Rxe4 {[%emt 0:00:08]} 55. Kd3 {[%emt 0:00:36]} Re3+ {[%emt 0:02:13]} 56. Kxd4 {[%emt 0:00:05]} Ra3 {[%emt 0:00:46]} 57. Rf5 {[%emt 0:00:02]} Ra4+ {[%emt 0:00:58]} 58. Kc3 {[%emt 0:00:17]} Kd6 {[%emt 0:00:37]} 59. Kb3 {[%emt 0:00:10]} Ra1 {[%emt 0:00:14]} 60. Kb4 {[%emt 0:00:19]} Kc6 {[%emt 0:00:49]} 61. Rf6+ {[%emt 0:00:10]} Kb7 {[%emt 0:00:14]} 62. Kb5 {[%emt 0:00:23]} 1/2-1/2

[Event "Haarlemse Meesters-IM 2018"]
[Site "Haarlem"]
[Date "2018.10.21"]
[Round "2"]
[White "Gijswijt, Bart"]
[Black "Vedder, Richard"]
[Result "1-0"]
[ECO "D21"]
[WhiteElo "2321"]
[BlackElo "2288"]
[Annotator "RC"]
[PlyCount "45"]
[EventDate "2018.10.17"]
[EventType "tourn"]
[EventCountry "NED"]
[SourceTitle "playchess.com"]
[Source "ChessBase"]
[SourceQuality "1"]
[TimeControl "40/5400+30:1800+30"]

1. d4 {[%emt 0:00:00]} d5 {[%emt 0:00:00]} 2. c4 {[%emt 0:00:00]} dxc4 {[%emt 0:00:00]} 3. Nf3 {[%emt 0:00:07]} a6 {[%emt 0:00:00]} 4. e4 {[%emt 0:00:48]} b5 {[%emt 0:00:11]} 5. b3 {[%emt 0:00:26]} Bb7 {[%emt 0:03:42]} 6. bxc4 {[%emt 0:00:21]} Bxe4 {[%emt 0:01:04]} 7. Nc3 {[%emt 0:01:03]} Bb7 {[%emt 0:03:12]} 8. cxb5 {[%emt 0:00:21]} Nd7 {[%emt 0:09:19]} 9. bxa6 {[%emt 0:05:43]} Bxa6 {[%emt 0:01:02]} 10. Bxa6 {[%emt 0:00:21]} Rxa6 {[%emt 0:00:03]} 11. O-O {[%emt 0:02:20]} Ngf6 {[%emt 0:01:24]} 12. Qd3 {[%emt 0:16:51]} Qa8 {[%emt 0:07:52]} 13. Bf4 {[%emt 0:00:54]} c6 {[%emt 0:01:49]} 14. Ne5 {[%emt 0:09:53]} e6 {[%emt 0:06:37]} 15. Nxd7 {[%emt 0:10:13]} Nxd7 {[%emt 0:00:59]} 16. d5 {[%emt 0:06:08]} Nc5 {[%emt 0:02:48]} 17. Qd4 {[%emt 0:04:49]} exd5 {[%emt 0:07:20]} 18. Qe5+ {[%emt 0:05:31]} Ne6 {[%emt 0:00:41]} 19. Rab1 {[%emt 0:00:50]} Kd7 {[%emt 0:04:17]} 20. Rb8 {[%emt 0:00:58]} Qa7 {[%emt 0:00:38]} 21. Rfb1 {[%emt 0:00:30]} Nd8 {[%emt 0:02:46]} 22. Rxd8+ {[%emt 0:00:48]} Kxd8 {[%emt 0:00:09]} 23. Rb8+ {[%emt 0:00:00]} 1-0

[Event "Haarlemse Meesters-IM 2018"]
[Site "Haarlem"]
[Date "2018.10.21"]
[Round "2"]
[White "Basman, Michael J"]
[Black "Lenaerts, Lennert"]
[Result "0-1"]
[ECO "A00"]
[WhiteElo "2313"]
[BlackElo "2362"]
[Annotator "NA"]
[PlyCount "69"]
[EventDate "2018.10.17"]
[EventType "tourn"]
[EventCountry "NED"]
[SourceTitle "playchess.com"]
[Source "ChessBase"]
[SourceQuality "1"]
[TimeControl "40/5400+30:1800+30"]

{[%evp 8,69,-6,-14,-4,-15,32767,-38,32767,-11,32767,-4,32767,32767,-8,0,32767,-13,32767,32767,-101,-104,-81,-127,-100,32767,32767,-152,32767,32767,-190,32767,32767,-185,-226,-187,-207,-272,-216,-215,32767,32767,32767,32767,32767,32767,-791,-659,-697,-673,-719,-715,-716,-747,-731,-706,-755,-1028,32767,32767,32767,-756,-750,-883]} 1. b4 {[%emt 0:00:00]} c6 {[%emt 0:00:00]} 2. a3 {[%emt 0:01:57]} a5 {[%emt 0:03:04]} 3. b5 {[%emt 0:00:41]} d5 {[%emt 0:02:05]} 4. e3 {[%emt 0:00:32]} e5 {[%emt 0:07:28]} 5. Bb2 {[%emt 0:00:09]} Bd6 {[%emt 0:00:08]} 6. c4 {[%emt 0:10:53]} Nf6 {[%emt 0:08:27]} 7. bxc6 {[%emt 0:02:26]} bxc6 {[%emt 0:00:57]} 8. Nf3 {[%emt 0:00:08]} Nbd7 {[%emt 0:04:59]} 9. Nc3 {[%emt 0:05:03]} O-O {[%emt 0:00:50]} 10. cxd5 {[%emt 0:00:04]} cxd5 {[%emt 0:00:06]} 11. Nb5 {[%emt 0:00:05]} Bb8 {[%emt 0:00:11]} 12. d4 {[%emt 0:01:42]} e4 {[%emt 0:00:46]} 13. Ne5 {[%emt 0:00:08] [#]} Nxe5 $1 {[%emt 0:03:09]} 14. dxe5 {[%emt 0:00:07]} Ng4 {[%emt 0:00:21]} 15. Be2 {[%emt 0:07:43]} Nxe5 {[%emt 0:01:43]} 16. Bd4 {[%emt 0:11:37]} Qg5 {[%emt 0:04:45]} 17. Kf1 {[%emt 0:01:20]} Bg4 {[%emt 0:13:53]} 18. h4 {[%emt 0:04:53]} Bxe2+ {[%emt 0:02:45]} 19. Qxe2 {[%emt 0:00:10]} Qf5 {[%emt 0:00:03]} 20. h5 {[%emt 0:08:00]} h6 {[%emt 0:02:31]} 21. Rd1 {[%emt 0:08:15]} Rc8 {[%emt 0:02:39]} 22. Ba1 {[%emt 0:04:22]} Ng4 {[%emt 0:09:11]} 23. Kg1 {[%emt 0:10:03]} Qg5 {[%emt 0:10:14]} 24. Rh3 {[%emt 0:02:22]} Ra6 {[%emt 0:04:26]} 25. Nd4 {[%emt 0:02:27]} Rf6 {[%emt 0:02:24]} 26. Rf1 {[%emt 0:01:16] [#]} Nxf2 $1 {[%emt 0:02:17]} 27. Qxf2 {[%emt 0:05:37]} Rxf2 {[%emt 0:00:05]} 28. Kxf2 {[%emt 0:00:08]} Be5 {[%emt 0:00:27]} 29. Kg1 {[%emt 0:00:12]} Qg4 {[%emt 0:00:29]} 30. Bb2 {[%emt 0:03:38]} a4 {[%emt 0:01:46]} 31. Ba1 {[%emt 0:00:10]} f6 {[%emt 0:04:38]} 32. Kh1 {[%emt 0:02:02]} Bxd4 {[%emt 0:01:16]} 33. Bxd4 {[%emt 0:00:02]} Rc2 {[%emt 0:00:11]} 34. Rh2 {[%emt 0:00:34]} Qe2 {[%emt 0:00:44]} 35. Kg1 $19 {[%emt 0:00:19]} 0-1

[Event "Haarlemse Meesters-IM 2018"]
[Site "Haarlem"]
[Date "2018.10.22"]
[Round "3"]
[White "Bosboom, Manuel"]
[Black "Harff, Marcel"]
[Result "1/2-1/2"]
[ECO "C00"]
[WhiteElo "2404"]
[BlackElo "2420"]
[Annotator "RC"]
[PlyCount "48"]
[EventDate "2018.10.17"]
[EventType "tourn"]
[EventCountry "NED"]
[SourceTitle "playchess.com"]
[Source "ChessBase"]
[SourceQuality "1"]
[TimeControl "40/5400+30:1800+30"]

1. Nf3 {[%emt 0:00:00]} d5 {[%emt 0:00:00]} 2. g3 {[%emt 0:00:21]} Nf6 {[%emt 0:01:37]} 3. Bg2 {[%emt 0:00:19]} e6 {[%emt 0:00:09]} 4. O-O {[%emt 0:04:28]} Be7 {[%emt 0:00:10]} 5. d3 {[%emt 0:00:28]} c5 {[%emt 0:00:28]} 6. Nbd2 {[%emt 0:01:34]} Nc6 {[%emt 0:00:19]} 7. e4 {[%emt 0:00:05]} b6 {[%emt 0:04:10]} 8. Re1 {[%emt 0:01:10]} Bb7 {[%emt 0:02:12]} 9. c3 {[%emt 0:03:57]} Qc7 {[%emt 0:08:20]} 10. Qe2 {[%emt 0:06:03]} h6 {[%emt 0:05:02]} 11. a3 {[%emt 0:04:08]} a5 {[%emt 0:00:08]} 12. a4 {[%emt 0:05:25]} Ba6 {[%emt 0:09:32]} 13. exd5 {[%emt 0:01:13]} exd5 {[%emt 0:00:34]} 14. Nb1 {[%emt 0:07:57]} O-O {[%emt 0:00:22]} 15. Na3 {[%emt 0:00:04]} Rfe8 {[%emt 0:02:25]} 16. Nb5 {[%emt 0:04:23]} Qd7 {[%emt 0:04:38]} 17. Bf4 {[%emt 0:03:58]} Bd6 {[%emt 0:03:18]} 18. Qd2 {[%emt 0:00:54]} Bxf4 {[%emt 0:00:07]} 19. Qxf4 {[%emt 0:00:17]} Bxb5 {[%emt 0:00:08]} 20. axb5 {[%emt 0:00:11]} Ne7 {[%emt 0:00:05]} 21. Qa4 {[%emt 0:03:26]} Ng6 {[%emt 0:02:21]} 22. d4 {[%emt 0:02:01]} c4 {[%emt 0:06:44]} 23. h4 {[%emt 0:06:56]} Rxe1+ {[%emt 0:02:28]} 24. Rxe1 {[%emt 0:01:51]} Re8 {[%emt 0:00:24]} 1/2-1/2